[Event "Titled Tuesday Blitz February 22 Early 2022"]
[White "Nur-Mukhametova, Alisa"]
[Black "Csonka, Balazs"]
[WhiteFideId "54117739"]
[BlackFideId "742910"]
[WhiteElo "2015"]
[BlackElo "2404"]
[Result "0-1"]
[Round "09"]
[TimeControl "180+1"]
[Date "2022.02.22"]
[WhiteClock "0:00:03"]
[BlackClock "0:00:03"]

1. Nf3 {[%clk 0:02:41]}  e6 {[%clk 0:03:00]} 2. d4 {[%clk 0:02:40]}  Nf6 {[%clk 0:03:00]} 3. g3 {[%clk 0:02:40]}  b6 {[%clk 0:02:59]} 4. Bg2 {[%clk 0:02:40]}  Bb7 {[%clk 0:03:00]} 5. O-O {[%clk 0:02:41]}  c5 {[%clk 0:03:00]} 6. c4 {[%clk 0:02:39]}  cxd4 {[%clk 0:02:49]} 7. Nxd4 {[%clk 0:02:39]}  Bxg2 {[%clk 0:02:48]} 8. Kxg2 {[%clk 0:02:40]}  d5 {[%clk 0:02:42]} 9. Qa4+ {[%clk 0:02:09]}  Qd7 {[%clk 0:02:35]} 10. Qxd7+ {[%clk 0:02:09]}  Kxd7 {[%clk 0:02:16]} 11. cxd5 {[%clk 0:02:04]}  Nxd5 {[%clk 0:02:17]} 12. e4 {[%clk 0:02:04]}  Nb4 {[%clk 0:02:14]} 13. Rd1 {[%clk 0:01:52]}  Ke8 {[%clk 0:01:07]} 14. a3 {[%clk 0:01:48]}  N4c6 {[%clk 0:01:07]} 15. Nb5 {[%clk 0:01:34]}  Na6 {[%clk 0:01:06]} 16. N1c3 {[%clk 0:01:29]}  Rc8 {[%clk 0:01:01]} 17. Bf4 {[%clk 0:01:11]}  e5 {[%clk 0:00:46]} 18. Be3 {[%clk 0:01:10]}  Nc5 {[%clk 0:00:40]} 19. b4 {[%clk 0:00:56]}  Nb3 {[%clk 0:00:36]} 20. Rab1 {[%clk 0:00:53]}  Nbd4 {[%clk 0:00:32]} 21. Bxd4 {[%clk 0:00:46]}  Nxd4 {[%clk 0:00:18]} 22. Nxd4 {[%clk 0:00:45]}  Rxc3 {[%clk 0:00:13]} 23. Nb5 {[%clk 0:00:45]}  Rc2 {[%clk 0:00:12]} 24. Nxa7 {[%clk 0:00:40]}  Be7 {[%clk 0:00:12]} 25. Rbc1 {[%clk 0:00:39]}  Rxc1 {[%clk 0:00:12]} 26. Rxc1 {[%clk 0:00:39]}  Kd7 {[%clk 0:00:12]} 27. Nc6 {[%clk 0:00:32]}  Bd6 {[%clk 0:00:12]} 28. b5 {[%clk 0:00:25]}  Ra8 {[%clk 0:00:10]} 29. Rc3 {[%clk 0:00:17]}  f6 {[%clk 0:00:09]} 30. Rd3 {[%clk 0:00:17]}  Rxa3 {[%clk 0:00:06]} 31. Rxa3 {[%clk 0:00:14]}  Bxa3 {[%clk 0:00:07]} 32. f3 {[%clk 0:00:14]}  Kd6 {[%clk 0:00:07]} 33. Nd8 {[%clk 0:00:11]}  Kd7 {[%clk 0:00:05]} 34. Nc6 {[%clk 0:00:11]}  Bf8 {[%clk 0:00:04]} 35. Kf2 {[%clk 0:00:11]}  Kd6 {[%clk 0:00:04]} 36. Ke3 {[%clk 0:00:11]}  Kc5 {[%clk 0:00:04]} 37. Nd8 {[%clk 0:00:11]}  Kxb5 {[%clk 0:00:04]} 38. Ne6 {[%clk 0:00:12]}  Bc5+ {[%clk 0:00:04]} 39. Kd3 {[%clk 0:00:12]}  g5 {[%clk 0:00:04]} 40. Nc7+ {[%clk 0:00:09]}  Kc6 {[%clk 0:00:04]} 41. Nd5 {[%clk 0:00:10]}  f5 {[%clk 0:00:03]} 42. Nf6 {[%clk 0:00:07]}  f4 {[%clk 0:00:02]} 43. Nxh7 {[%clk 0:00:06]}  Be7 {[%clk 0:00:02]} 44. gxf4 {[%clk 0:00:06]}  gxf4 {[%clk 0:00:03]} 45. Kc4 {[%clk 0:00:05]}  b5+ {[%clk 0:00:03]} 46. Kb3 {[%clk 0:00:05]}  Kc5 {[%clk 0:00:04]} 47. h4 {[%clk 0:00:06]}  Bxh4 {[%clk 0:00:04]} 48. Nf8 {[%clk 0:00:06]}  Kd4 {[%clk 0:00:04]} 49. Ng6 {[%clk 0:00:05]}  Bd8 {[%clk 0:00:03]} 50. Kb4 {[%clk 0:00:04]}  Bf6 {[%clk 0:00:03]} 51. Kxb5 {[%clk 0:00:04]}  Ke3 {[%clk 0:00:04]} 52. Kc4 {[%clk 0:00:04]}  Kxf3 {[%clk 0:00:04]} 53. Kd3 {[%clk 0:00:04]}  Kg2 {[%clk 0:00:03]} 54. Nf8 {[%clk 0:00:02]}  f3 {[%clk 0:00:03]} 55. Nh7 {[%clk 0:00:03]}  f2 {[%clk 0:00:03]} 0-1


[Site "https://www.chess.com"]

[Event "Titled Tuesday Blitz February 22 Early 2022"]
[White "Obolenskikh, Dmitry"]
[Black "Grandelius, Nils"]
[WhiteFideId "4156013"]
[BlackFideId "1710400"]
[WhiteElo "2512"]
[BlackElo "2617"]
[Result "0-1"]
[Round "09"]
[TimeControl "180+1"]
[Date "2022.02.22"]
[WhiteClock "0:00:54"]
[BlackClock "0:00:26"]

1. Nf3 {[%clk 0:03:00]}  e6 {[%clk 0:01:49]} 2. c4 {[%clk 0:02:59]}  d5 {[%clk 0:01:50]} 3. e3 {[%clk 0:02:59]}  Nf6 {[%clk 0:01:50]} 4. b3 {[%clk 0:02:59]}  b6 {[%clk 0:01:50]} 5. Bb2 {[%clk 0:02:59]}  Bd6 {[%clk 0:01:50]} 6. cxd5 {[%clk 0:02:57]}  exd5 {[%clk 0:01:51]} 7. Nc3 {[%clk 0:02:57]}  a6 {[%clk 0:01:51]} 8. d4 {[%clk 0:02:57]}  O-O {[%clk 0:01:52]} 9. Be2 {[%clk 0:02:57]}  Bb7 {[%clk 0:01:52]} 10. O-O {[%clk 0:02:58]}  Nbd7 {[%clk 0:01:53]} 11. Rc1 {[%clk 0:02:57]}  Qe7 {[%clk 0:01:51]} 12. Rc2 {[%clk 0:02:57]}  Ne4 {[%clk 0:01:50]} 13. Qc1 {[%clk 0:02:57]}  f5 {[%clk 0:01:38]} 14. g3 {[%clk 0:02:56]}  Rae8 {[%clk 0:01:35]} 15. Rd1 {[%clk 0:02:55]}  g5 {[%clk 0:01:33]} 16. Bf1 {[%clk 0:02:54]}  f4 {[%clk 0:01:31]} 17. exf4 {[%clk 0:02:49]}  gxf4 {[%clk 0:01:32]} 18. Bg2 {[%clk 0:02:42]}  Qg7 {[%clk 0:01:25]} 19. Ba3 {[%clk 0:02:25]}  Bxa3 {[%clk 0:01:14]} 20. Qxa3 {[%clk 0:02:25]}  Ndf6 {[%clk 0:01:08]} 21. Ne2 {[%clk 0:01:43]}  fxg3 {[%clk 0:01:02]} 22. hxg3 {[%clk 0:01:38]}  Ng4 {[%clk 0:00:51]} 23. Rf1 {[%clk 0:01:19]}  Re7 {[%clk 0:00:52]} 24. Qc1 {[%clk 0:01:15]}  Ref7 {[%clk 0:00:49]} 25. Nf4 {[%clk 0:01:14]}  c5 {[%clk 0:00:40]} 26. Ne6 {[%clk 0:01:08]}  Qf6 {[%clk 0:00:30]} 27. Nxf8 {[%clk 0:01:08]}  Rxf8 {[%clk 0:00:30]} 28. dxc5 {[%clk 0:01:06]}  bxc5 {[%clk 0:00:30]} 29. Rxc5 {[%clk 0:01:03]}  Nxc5 {[%clk 0:00:28]} 30. Qxc5 {[%clk 0:01:03]}  d4 {[%clk 0:00:27]} 31. Nxd4 {[%clk 0:00:58]}  Bxg2 {[%clk 0:00:27]} 32. Kxg2 {[%clk 0:00:58]}  Ne3+ {[%clk 0:00:27]} 33. Kg1 {[%clk 0:00:54]}  Nxf1 {[%clk 0:00:27]} 34. Qc4+ {[%clk 0:00:54]}  Kh8 {[%clk 0:00:25]} 35. Qxf1 {[%clk 0:00:54]}  Qxd4 {[%clk 0:00:26]} 0-1


[Site "https://www.chess.com"]

[Event "Titled Tuesday Blitz February 22 Early 2022"]
[White "Obolentseva, Alexandra"]
[Black "Dronavalli, Harika"]
[WhiteFideId "24153648"]
[BlackFideId "5015197"]
[WhiteElo "2113"]
[BlackElo "2382"]
[Result "1/2-1/2"]
[Round "09"]
[TimeControl "180+1"]
[Date "2022.02.22"]
[WhiteClock "0:00:21"]
[BlackClock "0:00:19"]

1. d4 {[%clk 0:03:00]}  Nf6 {[%clk 0:02:58]} 2. c4 {[%clk 0:02:59]}  c5 {[%clk 0:02:57]} 3. d5 {[%clk 0:02:59]}  e6 {[%clk 0:02:57]} 4. Nc3 {[%clk 0:02:53]}  exd5 {[%clk 0:02:56]} 5. cxd5 {[%clk 0:02:54]}  d6 {[%clk 0:02:57]} 6. e4 {[%clk 0:02:54]}  g6 {[%clk 0:02:50]} 7. Nge2 {[%clk 0:02:53]}  Bg7 {[%clk 0:02:50]} 8. Ng3 {[%clk 0:02:52]}  O-O {[%clk 0:02:35]} 9. Be2 {[%clk 0:02:51]}  a6 {[%clk 0:02:21]} 10. a4 {[%clk 0:02:51]}  h5 {[%clk 0:02:20]} 11. O-O {[%clk 0:02:44]}  Re8 {[%clk 0:02:12]} 12. Bg5 {[%clk 0:02:34]}  Nbd7 {[%clk 0:02:12]} 13. f4 {[%clk 0:02:31]}  Qb6 {[%clk 0:02:09]} 14. Qd2 {[%clk 0:02:15]}  Nh7 {[%clk 0:02:07]} 15. Bh4 {[%clk 0:02:10]}  Qb4 {[%clk 0:02:05]} 16. Rae1 {[%clk 0:01:54]}  Qd4+ {[%clk 0:02:01]} 17. Qxd4 {[%clk 0:01:53]}  Bxd4+ {[%clk 0:02:00]} 18. Kh1 {[%clk 0:01:53]}  b6 {[%clk 0:02:00]} 19. Bf3 {[%clk 0:01:42]}  Rb8 {[%clk 0:01:59]} 20. Nge2 {[%clk 0:01:35]}  Bg7 {[%clk 0:01:55]} 21. Bg3 {[%clk 0:01:33]}  b5 {[%clk 0:01:54]} 22. axb5 {[%clk 0:01:33]}  axb5 {[%clk 0:01:55]} 23. e5 {[%clk 0:01:15]}  dxe5 {[%clk 0:01:49]} 24. Nc1 {[%clk 0:01:08]}  b4 {[%clk 0:01:40]} 25. Ne4 {[%clk 0:01:06]}  Ba6 {[%clk 0:01:40]} 26. Be2 {[%clk 0:00:50]}  exf4 {[%clk 0:01:30]} 27. Bxf4 {[%clk 0:00:43]}  Bxe2 {[%clk 0:01:29]} 28. Rxe2 {[%clk 0:00:31]}  Ra8 {[%clk 0:01:30]} 29. Rfe1 {[%clk 0:00:28]}  c4 {[%clk 0:01:28]} 30. h3 {[%clk 0:00:24]}  Nhf8 {[%clk 0:01:12]} 31. Nd6 {[%clk 0:00:23]}  Rxe2 {[%clk 0:01:12]} 32. Nxe2 {[%clk 0:00:21]}  c3 {[%clk 0:01:12]} 33. bxc3 {[%clk 0:00:21]}  bxc3 {[%clk 0:01:12]} 34. Rc1 {[%clk 0:00:21]}  Nb6 {[%clk 0:01:11]} 35. Nxc3 {[%clk 0:00:18]}  Bxc3 {[%clk 0:01:10]} 36. Rxc3 {[%clk 0:00:19]}  Nxd5 {[%clk 0:01:10]} 37. Rf3 {[%clk 0:00:19]}  Nxf4 {[%clk 0:01:03]} 38. Rxf4 {[%clk 0:00:20]}  Ra7 {[%clk 0:01:03]} 39. Ne4 {[%clk 0:00:19]}  Ne6 {[%clk 0:01:02]} 40. Nf6+ {[%clk 0:00:20]}  Kg7 {[%clk 0:01:01]} 41. Rf2 {[%clk 0:00:20]}  Ra8 {[%clk 0:00:57]} 42. Kh2 {[%clk 0:00:21]}  Rd8 {[%clk 0:00:53]} 43. Ne4 {[%clk 0:00:21]}  Rd4 {[%clk 0:00:53]} 44. Nf6 {[%clk 0:00:21]}  h4 {[%clk 0:00:46]} 45. Ng4 {[%clk 0:00:21]}  f5 {[%clk 0:00:44]} 46. Ne5 {[%clk 0:00:20]}  Kf6 {[%clk 0:00:44]} 47. Nf3 {[%clk 0:00:20]}  Re4 {[%clk 0:00:44]} 48. Ra2 {[%clk 0:00:20]}  g5 {[%clk 0:00:44]} 49. Ra6 {[%clk 0:00:20]}  Ke7 {[%clk 0:00:41]} 50. Ra7+ {[%clk 0:00:20]}  Kf6 {[%clk 0:00:35]} 51. Ra6 {[%clk 0:00:20]}  Rf4 {[%clk 0:00:32]} 52. Nxg5 {[%clk 0:00:20]}  Kxg5 {[%clk 0:00:32]} 53. Rxe6 {[%clk 0:00:20]}  Rf2 {[%clk 0:00:32]} 54. Re3 {[%clk 0:00:20]}  Rb2 {[%clk 0:00:29]} 55. Ra3 {[%clk 0:00:20]}  Re2 {[%clk 0:00:29]} 56. Ra8 {[%clk 0:00:20]}  Kf4 {[%clk 0:00:29]} 57. Ra4+ {[%clk 0:00:20]}  Re4 {[%clk 0:00:28]} 58. Ra3 {[%clk 0:00:20]}  Kg5 {[%clk 0:00:28]} 59. Ra5 {[%clk 0:00:20]}  Kf6 {[%clk 0:00:28]} 60. Ra6+ {[%clk 0:00:21]}  Kg5 {[%clk 0:00:28]} 61. Ra5 {[%clk 0:00:21]}  Rd4 {[%clk 0:00:28]} 62. Ra6 {[%clk 0:00:21]}  f4 {[%clk 0:00:27]} 63. Ra5+ {[%clk 0:00:21]}  Kg6 {[%clk 0:00:27]} 64. Ra6+ {[%clk 0:00:22]}  Kf5 {[%clk 0:00:26]} 65. Ra8 {[%clk 0:00:22]}  Rd2 {[%clk 0:00:26]} 66. Rf8+ {[%clk 0:00:23]}  Ke4 {[%clk 0:00:26]} 67. Re8+ {[%clk 0:00:23]}  Kd3 {[%clk 0:00:26]} 68. Rf8 {[%clk 0:00:24]}  Ke3 {[%clk 0:00:26]} 69. Re8+ {[%clk 0:00:24]}  Kf2 {[%clk 0:00:26]} 70. Rf8 {[%clk 0:00:24]}  Rd4 {[%clk 0:00:25]} 71. Rf7 {[%clk 0:00:24]}  Re4 {[%clk 0:00:25]} 72. Rf8 {[%clk 0:00:23]}  Ke3 {[%clk 0:00:23]} 73. Kg1 {[%clk 0:00:23]}  Rd4 {[%clk 0:00:23]} 74. Re8+ {[%clk 0:00:23]}  Re4 {[%clk 0:00:23]} 75. Ra8 {[%clk 0:00:21]}  Rd4 {[%clk 0:00:22]} 76. Re8+ {[%clk 0:00:21]}  Re4 {[%clk 0:00:21]} 77. Ra8 {[%clk 0:00:21]}  Rd4 {[%clk 0:00:19]} 78. Re8+ {[%clk 0:00:21]} 1/2-1/2


[Site "https://www.chess.com"]

[Event "Titled Tuesday Blitz February 22 Early 2022"]
[White "Oparin, Grigoriy"]
[Black "Szpar, Milosz"]
[WhiteFideId "24125890"]
[BlackFideId "1184989"]
[WhiteElo "2685"]
[BlackElo "2447"]
[Result "1/2-1/2"]
[Round "09"]
[TimeControl "180+1"]
[Date "2022.02.22"]
[WhiteClock "0:01:18"]
[BlackClock "0:00:08"]

1. d4 {[%clk 0:03:00]}  Nf6 {[%clk 0:02:51]} 2. c4 {[%clk 0:03:01]}  e6 {[%clk 0:02:49]} 3. Nf3 {[%clk 0:03:02]}  c5 {[%clk 0:02:49]} 4. Nc3 {[%clk 0:03:02]}  cxd4 {[%clk 0:02:47]} 5. Nxd4 {[%clk 0:03:03]}  b6 {[%clk 0:02:47]} 6. e4 {[%clk 0:03:02]}  d6 {[%clk 0:02:45]} 7. f3 {[%clk 0:03:00]}  Bb7 {[%clk 0:02:45]} 8. Be3 {[%clk 0:03:01]}  Nbd7 {[%clk 0:02:45]} 9. Qd2 {[%clk 0:03:01]}  Be7 {[%clk 0:02:45]} 10. a4 {[%clk 0:03:01]}  O-O {[%clk 0:02:42]} 11. Be2 {[%clk 0:03:01]}  Rc8 {[%clk 0:02:42]} 12. O-O {[%clk 0:02:59]}  Qc7 {[%clk 0:02:41]} 13. a5 {[%clk 0:02:59]}  Qb8 {[%clk 0:02:40]} 14. axb6 {[%clk 0:02:55]}  Nxb6 {[%clk 0:02:39]} 15. b3 {[%clk 0:02:47]}  d5 {[%clk 0:02:39]} 16. cxd5 {[%clk 0:02:41]}  exd5 {[%clk 0:02:40]} 17. e5 {[%clk 0:02:42]}  Qxe5 {[%clk 0:02:13]} 18. Rxa7 {[%clk 0:02:42]}  Bb4 {[%clk 0:02:10]} 19. Rxb7 {[%clk 0:02:39]}  Bxc3 {[%clk 0:02:02]} 20. Qd3 {[%clk 0:02:39]}  Nbd7 {[%clk 0:02:01]} 21. f4 {[%clk 0:02:14]}  Qe4 {[%clk 0:01:57]} 22. Qxe4 {[%clk 0:02:11]}  dxe4 {[%clk 0:01:58]} 23. Nf5 {[%clk 0:02:09]}  Rb8 {[%clk 0:01:38]} 24. Ne7+ {[%clk 0:02:03]}  Kh8 {[%clk 0:01:37]} 25. Rxb8 {[%clk 0:02:03]}  Rxb8 {[%clk 0:01:38]} 26. Bc4 {[%clk 0:02:03]}  Ng4 {[%clk 0:01:12]} 27. Rd1 {[%clk 0:02:02]}  Nxe3 {[%clk 0:01:00]} 28. Rxd7 {[%clk 0:02:02]}  Nxc4 {[%clk 0:00:57]} 29. bxc4 {[%clk 0:02:03]}  e3 {[%clk 0:00:57]} 30. Kf1 {[%clk 0:02:02]}  g5 {[%clk 0:00:42]} 31. Nd5 {[%clk 0:01:59]}  Bd4 {[%clk 0:00:34]} 32. fxg5 {[%clk 0:01:50]}  Rb1+ {[%clk 0:00:29]} 33. Ke2 {[%clk 0:01:50]}  Rb2+ {[%clk 0:00:29]} 34. Kd1 {[%clk 0:01:43]}  Rxg2 {[%clk 0:00:17]} 35. Rxf7 {[%clk 0:01:39]}  Rxg5 {[%clk 0:00:14]} 36. Re7 {[%clk 0:01:26]}  Rg2 {[%clk 0:00:11]} 37. Nxe3 {[%clk 0:01:23]}  Bxe3 {[%clk 0:00:08]} 38. Rxe3 {[%clk 0:01:23]}  Rxh2 {[%clk 0:00:08]} 39. c5 {[%clk 0:01:24]}  Rh6 {[%clk 0:00:08]} 40. Kd2 {[%clk 0:01:23]}  Rc6 {[%clk 0:00:08]} 41. Rc3 {[%clk 0:01:20]}  Kg7 {[%clk 0:00:08]} 42. Kd3 {[%clk 0:01:21]}  Kf6 {[%clk 0:00:08]} 43. Kc4 {[%clk 0:01:21]}  h5 {[%clk 0:00:07]} 44. Kb5 {[%clk 0:01:22]}  Rc8 {[%clk 0:00:08]} 45. c6 {[%clk 0:01:21]}  Kg5 {[%clk 0:00:08]} 46. Rg3+ {[%clk 0:01:17]}  Kf4 {[%clk 0:00:08]} 47. Rg7 {[%clk 0:01:17]}  h4 {[%clk 0:00:08]} 48. c7 {[%clk 0:01:16]}  h3 {[%clk 0:00:08]} 49. Kc6 {[%clk 0:01:16]}  h2 {[%clk 0:00:07]} 50. Rh7 {[%clk 0:01:17]}  Kg3 {[%clk 0:00:07]} 51. Kb7 {[%clk 0:01:17]}  Rxc7+ {[%clk 0:00:07]} 52. Kxc7 {[%clk 0:01:18]}  Kg2 {[%clk 0:00:08]} 53. Rxh2+ {[%clk 0:01:18]}  Kxh2 {[%clk 0:00:08]} 1/2-1/2


[Site "https://www.chess.com"]

[Event "Titled Tuesday Blitz February 22 Early 2022"]
[White "Ovetchkin, Roman"]
[Black "Andreikin, Dmitry"]
[WhiteFideId "4119991"]
[BlackFideId "4158814"]
[WhiteElo "2409"]
[BlackElo "2736"]
[Result "1-0"]
[Round "09"]
[TimeControl "180+1"]
[Date "2022.02.22"]
[WhiteClock "0:00:21"]
[BlackClock "0:00:06"]

1. d4 {[%clk 0:03:00]}  Nf6 {[%clk 0:02:59]} 2. c4 {[%clk 0:03:00]}  e6 {[%clk 0:02:56]} 3. g3 {[%clk 0:03:01]}  d5 {[%clk 0:02:52]} 4. Bg2 {[%clk 0:03:00]}  Bb4+ {[%clk 0:02:50]} 5. Bd2 {[%clk 0:03:00]}  Be7 {[%clk 0:02:50]} 6. Nf3 {[%clk 0:02:59]}  O-O {[%clk 0:02:50]} 7. O-O {[%clk 0:02:59]}  Nbd7 {[%clk 0:02:43]} 8. Qc2 {[%clk 0:02:54]}  c6 {[%clk 0:02:40]} 9. Rd1 {[%clk 0:02:45]}  a5 {[%clk 0:02:38]} 10. Bf4 {[%clk 0:02:32]}  a4 {[%clk 0:02:38]} 11. Nc3 {[%clk 0:02:24]}  Qa5 {[%clk 0:02:37]} 12. Nd2 {[%clk 0:02:09]}  a3 {[%clk 0:02:33]} 13. b3 {[%clk 0:01:59]}  b5 {[%clk 0:02:21]} 14. e4 {[%clk 0:01:53]}  Ba6 {[%clk 0:02:08]} 15. e5 {[%clk 0:01:01]}  Ne8 {[%clk 0:01:40]} 16. Bf1 {[%clk 0:00:52]}  Rc8 {[%clk 0:01:35]} 17. c5 {[%clk 0:00:51]}  b4 {[%clk 0:01:33]} 18. Ne2 {[%clk 0:00:51]}  f5 {[%clk 0:01:22]} 19. h4 {[%clk 0:00:47]}  Qd8 {[%clk 0:01:16]} 20. Nf3 {[%clk 0:00:47]}  h6 {[%clk 0:01:14]} 21. Qd2 {[%clk 0:00:47]}  Rb8 {[%clk 0:01:11]} 22. Bxh6 {[%clk 0:00:41]}  Bxe2 {[%clk 0:00:59]} 23. Bxe2 {[%clk 0:00:39]}  gxh6 {[%clk 0:00:59]} 24. Qxh6 {[%clk 0:00:38]}  Ng7 {[%clk 0:01:00]} 25. Ng5 {[%clk 0:00:34]}  Bxg5 {[%clk 0:00:53]} 26. hxg5 {[%clk 0:00:35]}  f4 {[%clk 0:00:35]} 27. g6 {[%clk 0:00:30]}  Rf5 {[%clk 0:00:20]} 28. Qh7+ {[%clk 0:00:29]}  Kf8 {[%clk 0:00:21]} 29. Qh8+ {[%clk 0:00:29]}  Ke7 {[%clk 0:00:21]} 30. Qxg7+ {[%clk 0:00:29]}  Ke8 {[%clk 0:00:22]} 31. Bg4 {[%clk 0:00:25]}  Rf8 {[%clk 0:00:15]} 32. Bxe6 {[%clk 0:00:25]}  Qe7 {[%clk 0:00:11]} 33. Qxe7+ {[%clk 0:00:23]}  Kxe7 {[%clk 0:00:12]} 34. g7 {[%clk 0:00:24]}  Kxe6 {[%clk 0:00:12]} 35. gxf8=Q {[%clk 0:00:24]}  Rxf8 {[%clk 0:00:13]} 36. Kg2 {[%clk 0:00:23]}  f3+ {[%clk 0:00:11]} 37. Kf1 {[%clk 0:00:24]}  Rh8 {[%clk 0:00:10]} 38. Ke1 {[%clk 0:00:22]}  Rh2 {[%clk 0:00:09]} 39. Kd2 {[%clk 0:00:22]}  Rxf2+ {[%clk 0:00:08]} 40. Ke3 {[%clk 0:00:23]}  Rb2 {[%clk 0:00:08]} 41. Kxf3 {[%clk 0:00:22]}  Nf8 {[%clk 0:00:09]} 42. Rh1 {[%clk 0:00:22]}  Ng6 {[%clk 0:00:08]} 43. Rh6 {[%clk 0:00:22]}  Kf5 {[%clk 0:00:08]} 44. Rah1 {[%clk 0:00:21]}  Rxa2 {[%clk 0:00:05]} 45. R1h5+ {[%clk 0:00:21]}  Ke6 {[%clk 0:00:05]} 46. Rxg6+ {[%clk 0:00:21]}  Kf7 {[%clk 0:00:06]} 47. Rxc6 {[%clk 0:00:21]}  Rb2 {[%clk 0:00:06]} 48. Rh7+ {[%clk 0:00:21]}  Kg8 {[%clk 0:00:06]} 49. Ra7 {[%clk 0:00:21]}  Rxb3+ {[%clk 0:00:06]} 50. Kf4 {[%clk 0:00:21]} 1-0


[Site "https://www.chess.com"]

[Event "Titled Tuesday Blitz February 22 Early 2022"]
[White "Papasimakopoulos, Alexandros"]
[Black "Dev, Shah"]
[WhiteFideId "4244125"]
[BlackFideId "35019058"]
[WhiteElo "2340"]
[BlackElo "2098"]
[Result "1-0"]
[Round "09"]
[TimeControl "180+1"]
[Date "2022.02.22"]
[WhiteClock "0:00:35"]
[BlackClock "0:00:04"]

1. d4 {[%clk 0:03:00]}  d5 {[%clk 0:02:59]} 2. c4 {[%clk 0:03:01]}  c6 {[%clk 0:02:58]} 3. cxd5 {[%clk 0:03:01]}  cxd5 {[%clk 0:02:56]} 4. Bf4 {[%clk 0:03:01]}  Nf6 {[%clk 0:02:55]} 5. Nc3 {[%clk 0:03:01]}  Nc6 {[%clk 0:02:53]} 6. e3 {[%clk 0:03:01]}  a6 {[%clk 0:02:52]} 7. Bd3 {[%clk 0:03:01]}  Bg4 {[%clk 0:02:50]} 8. Nge2 {[%clk 0:03:01]}  e6 {[%clk 0:02:50]} 9. Rc1 {[%clk 0:03:00]}  Bd6 {[%clk 0:02:49]} 10. f3 {[%clk 0:03:01]}  Bh5 {[%clk 0:02:48]} 11. O-O {[%clk 0:03:01]}  Bg6 {[%clk 0:02:45]} 12. Na4 {[%clk 0:03:01]}  O-O {[%clk 0:02:36]} 13. Nc5 {[%clk 0:03:01]}  Ra7 {[%clk 0:02:26]} 14. b3 {[%clk 0:02:59]}  e5 {[%clk 0:02:18]} 15. dxe5 {[%clk 0:02:53]}  Nxe5 {[%clk 0:02:13]} 16. Bxg6 {[%clk 0:02:50]}  Nxg6 {[%clk 0:02:03]} 17. Bxd6 {[%clk 0:02:49]}  Qxd6 {[%clk 0:02:04]} 18. Qd4 {[%clk 0:02:49]}  b6 {[%clk 0:01:22]} 19. Na4 {[%clk 0:02:42]}  Rb7 {[%clk 0:01:21]} 20. Rfd1 {[%clk 0:02:41]}  Qe6 {[%clk 0:01:16]} 21. Nac3 {[%clk 0:02:30]}  Re8 {[%clk 0:01:07]} 22. Nf4 {[%clk 0:02:30]}  Nxf4 {[%clk 0:01:05]} 23. exf4 {[%clk 0:02:28]}  h6 {[%clk 0:00:52]} 24. a4 {[%clk 0:02:06]}  Rbe7 {[%clk 0:00:51]} 25. b4 {[%clk 0:01:55]}  Qd6 {[%clk 0:00:18]} 26. Kf2 {[%clk 0:01:42]}  a5 {[%clk 0:00:16]} 27. bxa5 {[%clk 0:01:38]}  bxa5 {[%clk 0:00:16]} 28. Nb5 {[%clk 0:01:35]}  Re2+ {[%clk 0:00:14]} 29. Kg1 {[%clk 0:01:34]}  Qb4 {[%clk 0:00:11]} 30. Qxb4 {[%clk 0:01:08]}  axb4 {[%clk 0:00:12]} 31. Nc7 {[%clk 0:01:09]}  Rc8 {[%clk 0:00:06]} 32. Nxd5 {[%clk 0:01:05]}  Rxc1 {[%clk 0:00:06]} 33. Nxf6+ {[%clk 0:01:05]}  gxf6 {[%clk 0:00:07]} 34. Rxc1 {[%clk 0:01:05]}  b3 {[%clk 0:00:07]} 35. Rb1 {[%clk 0:01:01]}  b2 {[%clk 0:00:06]} 36. h4 {[%clk 0:01:00]}  Rc2 {[%clk 0:00:05]} 37. Kh2 {[%clk 0:01:01]}  Kg7 {[%clk 0:00:05]} 38. a5 {[%clk 0:01:01]}  h5 {[%clk 0:00:04]} 39. a6 {[%clk 0:01:00]}  Rc6 {[%clk 0:00:04]} 40. Rxb2 {[%clk 0:01:00]}  Rxa6 {[%clk 0:00:04]} 41. g4 {[%clk 0:01:00]}  Kg6 {[%clk 0:00:03]} 42. f5+ {[%clk 0:00:59]}  Kh6 {[%clk 0:00:03]} 43. Rb7 {[%clk 0:00:57]}  Kg7 {[%clk 0:00:02]} 44. Rb3 {[%clk 0:00:56]}  Ra5 {[%clk 0:00:03]} 45. Kg3 {[%clk 0:00:56]}  Re5 {[%clk 0:00:03]} 46. Kf4 {[%clk 0:00:52]}  hxg4 {[%clk 0:00:03]} 47. fxg4 {[%clk 0:00:51]}  Re1 {[%clk 0:00:04]} 48. g5 {[%clk 0:00:48]}  Rf1+ {[%clk 0:00:04]} 49. Rf3 {[%clk 0:00:47]}  Rh1 {[%clk 0:00:04]} 50. Kg4 {[%clk 0:00:48]}  Rg1+ {[%clk 0:00:04]} 51. Kh5 {[%clk 0:00:47]}  fxg5 {[%clk 0:00:04]} 52. hxg5 {[%clk 0:00:48]}  f6 {[%clk 0:00:04]} 53. g6 {[%clk 0:00:44]}  Rg5+ {[%clk 0:00:04]} 54. Kh4 {[%clk 0:00:44]}  Kh6 {[%clk 0:00:04]} 55. Rf4 {[%clk 0:00:43]}  Kg7 {[%clk 0:00:02]} 56. Kh3 {[%clk 0:00:44]}  Rg1 {[%clk 0:00:02]} 57. Rf3 {[%clk 0:00:41]}  Rg5 {[%clk 0:00:02]} 58. Rf1 {[%clk 0:00:38]}  Rh5+ {[%clk 0:00:01]} 59. Kg4 {[%clk 0:00:38]}  Rg5+ {[%clk 0:00:02]} 60. Kf4 {[%clk 0:00:38]}  Rg2 {[%clk 0:00:03]} 61. Ra1 {[%clk 0:00:38]}  Rf2+ {[%clk 0:00:03]} 62. Ke4 {[%clk 0:00:38]}  Re2+ {[%clk 0:00:04]} 63. Kf3 {[%clk 0:00:39]}  Re7 {[%clk 0:00:03]} 64. Ra6 {[%clk 0:00:37]}  Kh6 {[%clk 0:00:03]} 65. Rxf6 {[%clk 0:00:36]}  Kg5 {[%clk 0:00:04]} 66. Rf7 {[%clk 0:00:36]}  Re8 {[%clk 0:00:04]} 67. g7 {[%clk 0:00:35]}  Kh6 {[%clk 0:00:04]} 68. f6 {[%clk 0:00:36]}  Kh7 {[%clk 0:00:04]} 69. Rf8 {[%clk 0:00:35]} 1-0


[Site "https://www.chess.com"]

[Event "Titled Tuesday Blitz February 22 Early 2022"]
[White "Papp, Petra"]
[Black "Kostiukov, Alexandr"]
[WhiteFideId "739049"]
[BlackFideId "14108100"]
[WhiteElo "2259"]
[BlackElo "2202"]
[Result "0-1"]
[Round "09"]
[TimeControl "180+1"]
[Date "2022.02.22"]
[WhiteClock "0:00:13"]
[BlackClock "0:00:28"]

1. d4 {[%clk 0:03:00]}  g6 {[%clk 0:02:59]} 2. c4 {[%clk 0:03:00]}  Bg7 {[%clk 0:03:00]} 3. Nc3 {[%clk 0:03:01]}  d6 {[%clk 0:03:00]} 4. e4 {[%clk 0:03:01]}  e5 {[%clk 0:03:01]} 5. Nf3 {[%clk 0:02:56]}  exd4 {[%clk 0:03:00]} 6. Nxd4 {[%clk 0:02:56]}  Nc6 {[%clk 0:03:01]} 7. Be3 {[%clk 0:02:55]}  Nge7 {[%clk 0:03:01]} 8. Be2 {[%clk 0:02:54]}  O-O {[%clk 0:03:01]} 9. O-O {[%clk 0:02:54]}  f5 {[%clk 0:03:01]} 10. exf5 {[%clk 0:02:49]}  Bxd4 {[%clk 0:03:01]} 11. Bxd4 {[%clk 0:02:46]}  Nxf5 {[%clk 0:03:02]} 12. Be3 {[%clk 0:02:32]}  Nxe3 {[%clk 0:03:02]} 13. fxe3 {[%clk 0:02:33]}  Rxf1+ {[%clk 0:03:01]} 14. Bxf1 {[%clk 0:02:33]}  Be6 {[%clk 0:03:02]} 15. Nd5 {[%clk 0:02:28]}  Bxd5 {[%clk 0:03:02]} 16. Qxd5+ {[%clk 0:02:26]}  Kg7 {[%clk 0:03:01]} 17. c5 {[%clk 0:02:24]}  Qe7 {[%clk 0:02:56]} 18. cxd6 {[%clk 0:02:17]}  Qxe3+ {[%clk 0:02:49]} 19. Kh1 {[%clk 0:02:17]}  Rd8 {[%clk 0:02:48]} 20. dxc7 {[%clk 0:02:07]}  Rxd5 {[%clk 0:02:41]} 21. c8=Q {[%clk 0:02:07]}  Qb6 {[%clk 0:02:20]} 22. Bc4 {[%clk 0:02:03]}  Qxb2 {[%clk 0:02:08]} 23. Rf1 {[%clk 0:01:53]}  Rf5 {[%clk 0:01:32]} 24. Qc7+ {[%clk 0:01:33]}  Kh6 {[%clk 0:01:28]} 25. Rg1 {[%clk 0:00:47]}  Ne5 {[%clk 0:01:20]} 26. Bg8 {[%clk 0:00:45]}  Ng4 {[%clk 0:00:58]} 27. Qxh7+ {[%clk 0:00:44]}  Kg5 {[%clk 0:00:58]} 28. h4+ {[%clk 0:00:31]}  Kf4 {[%clk 0:00:54]} 29. Rf1+ {[%clk 0:00:28]}  Kg3 {[%clk 0:00:41]} 30. Qc7+ {[%clk 0:00:25]}  Ne5 {[%clk 0:00:29]} 31. Rc1 {[%clk 0:00:13]}  Qxg2# {[%clk 0:00:28]} 0-1


[Site "https://www.chess.com"]